fUST/lending_fUST_20250210
["ID","MTS","AMOUNT","RATE_DAILY","PERIOD"]
[352599888,1739189442131,-500.0,0.00011369,2]
[352599889,1739189442140,-1594.08,0.00011369,2]
[352599890,1739189442150,-500.0,0.00011369,2]
[352599891,1739189442159,-500.0,0.00011369,2]
[352599892,1739189442168,-500.0,0.00011369,2]
[352599893,1739189442178,-531.01,0.00011369,2]
[352599894,1739189442187,-500.0,0.00011369,2]
[352599895,1739189442196,-500.0,0.00011369,2]
[352599896,1739189442206,-1871.76,0.00011369,2]
[352599897,1739189442215,-2807.91,0.00011369,2]
[352599898,1739189442225,-1308.92,0.00011369,2]
[352599899,1739189442235,-500.0,0.00011369,2]
[352599900,1739189442244,-738.83,0.00011369,2]
[352599901,1739189442253,-500.0,0.00011369,2]
[352599902,1739189442263,-500.0,0.00011369,2]
[352599903,1739189442272,-1414.35,0.00011369,2]
[352599904,1739189442281,-500.0,0.00011369,2]
[352599905,1739189442291,-526.69,0.00011369,2]
[352599906,1739189442301,-6325.24,0.00011369,2]
[352599907,1739189442313,-500.0,0.00011369,2]
[352599908,1739189442323,-500.0,0.00011369,2]
[352599909,1739189442333,-500.0,0.00011369,2]
[352599910,1739189442343,-500.0,0.00011369,2]
[352599911,1739189442352,-15991.72,0.00011369,2]
[352599912,1739189442362,-712.52,0.00011369,2]
[352599913,1739189442371,-500.0,0.00011369,2]
[352599914,1739189442380,-500.0,0.00011369,2]
[352599915,1739189442390,-1064.4,0.00011369,2]
[352599916,1739189442399,-500.0,0.00011369,2]
[352599917,1739189442408,-781.93,0.00011369,2]
[352599918,1739189442418,-500.0,0.00011369,2]
[352599919,1739189442427,-655.56,0.00011369,2]
[352599920,1739189442436,-500.0,0.00011369,2]
[352599921,1739189442446,-1531.85,0.00011369,2]
[352599922,1739189442456,-500.0,0.00011369,2]
[352599923,1739189442465,-806.14,0.00011369,2]
[352599924,1739189442474,-1191.34,0.00011369,2]
[352599925,1739189442483,-500.0,0.00011369,2]
[352599926,1739189442492,-3275.8,0.00011369,2]
[352599927,1739189442502,-500.0,0.00011369,2]
[352599928,1739189442511,-500.0,0.00011369,2]
[352599929,1739189442519,-724.35,0.00011369,2]
[352599930,1739189442532,-502.71504357,0.00011369,2]
[352599931,1739189442542,-500.0,0.00011369,2]
[352599933,1739189442551,-802.4,0.00011369,2]
[352599934,1739189442560,-7417.1,0.00011369,2]
[352599935,1739189442570,-1489.04,0.00011369,2]
[352599936,1739189442580,-791.55,0.00011369,2]
[352599937,1739189442589,-813.92,0.00011369,2]
[352599938,1739189442598,-787.61,0.00011369,2]
[352599939,1739189442609,-500.0,0.00011369,2]
[352599941,1739189442619,-606.85,0.00011369,2]
[352599943,1739189442629,-500.0,0.00011369,2]
[352599944,1739189442638,-277.11118127,0.00011406,2]
[352599945,1739189442647,-500.0,0.0001141,2]
[352599946,1739189442656,-500.0,0.0001141,2]
[352599947,1739189442665,-500.0,0.00011467,2]
[352599948,1739189442674,-504.93731554,0.00011467,2]
[352599949,1739189442684,-626.10567238,0.00011479,2]
[352599950,1739189442693,-500.86851527,0.00011479,2]
[352599951,1739189442703,-386.01861773,0.00011479,2]
[352599953,1739189442713,-500.0,0.00011479,2]
[352599954,1739189442721,-500.0,0.00011479,2]
[352599955,1739189442731,-500.0,0.00011479,2]
[352599956,1739189442739,-500.0,0.00011479,2]
[352599957,1739189442749,-632.31587076,0.00011479,2]
[352599959,1739189442758,-278.54427922,0.00011479,2]
[352599962,1739189442767,-500.0,0.00011495,2]
[352599966,1739189442776,-500.0,0.00011495,2]
[352599970,1739189442787,-500.0,0.00011495,2]
[352599971,1739189442797,-500.0,0.00011506,2]
[352599972,1739189442806,-500.0,0.00011506,2]
[352599974,1739189442815,-500.0,0.00011506,2]
[352599975,1739189442825,-500.0,0.00011506,2]
[352599977,1739189442834,-500.0,0.00011506,2]
[352599979,1739189442843,-500.0,0.00011506,2]
[352599980,1739189442852,-500.0,0.00011506,2]
[352599981,1739189442861,-810.36,0.00011506,2]
[352599982,1739189442871,-512.43,0.00011506,2]
[352599983,1739189442880,-500.0,0.00011506,2]
[352599984,1739189442890,-500.0,0.00011506,2]
[352599985,1739189442899,-500.0,0.00011506,2]
[352599986,1739189442908,-562.57,0.00011506,2]
[352599987,1739189442918,-500.0,0.00011506,2]
[352599989,1739189442927,-500.0,0.00011506,2]
[352599991,1739189442936,-500.0,0.00011506,2]
[352599992,1739189442945,-567.75,0.00011506,2]
[352599993,1739189442955,-500.0,0.00011506,2]
[352599994,1739189442964,-500.0,0.00011506,2]
[352599995,1739189442973,-500.0,0.00011506,2]
[352599997,1739189442983,-500.0,0.00011506,2]
[352599998,1739189442993,-500.0,0.00011506,2]
[352599999,1739189443003,-500.0,0.00011506,2]
[352600000,1739189443014,-500.0,0.00011506,2]
[352600001,1739189443024,-500.0,0.00011506,2]
[352600002,1739189443034,-763.0,0.00011506,2]
[352600003,1739189443044,-500.0,0.00011506,2]
[352600004,1739189443054,-500.0,0.00011506,2]
[352600005,1739189443064,-500.0,0.00011506,2]
[352600006,1739189443074,-536.46,0.00011506,2]
[352600008,1739189443084,-500.0,0.00011506,2]
[352600009,1739189443093,-500.0,0.00011506,2]
[352600011,1739189443103,-500.0,0.00011506,2]
[352600012,1739189443113,-500.0,0.00011506,2]
[352600013,1739189443123,-1594.08,0.00011506,2]
[352600014,1739189443133,-397.00989874,0.00011506,2]
[352600015,1739189443143,-567.08,0.00011506,2]
[352600016,1739189443154,-531.01,0.00011506,2]
[352600017,1739189443164,-500.0,0.00011506,2]
[352600018,1739189443174,-500.0,0.00011506,2]
[352600019,1739189443184,-1871.76,0.00011506,2]
[352600020,1739189443195,-2807.91,0.00011506,2]
[352600021,1739189443206,-1308.92,0.00011506,2]
[352600022,1739189443217,-738.83,0.00011506,2]
[352600023,1739189443226,-500.0,0.00011506,2]
[352600024,1739189443237,-500.0,0.00011506,2]
[352600025,1739189443247,-1414.35,0.00011506,2]
[352600026,1739189443257,-500.0,0.00011506,2]
[352600027,1739189443267,-526.69,0.00011506,2]
[352600028,1739189443277,-6325.24,0.00011506,2]
[352600029,1739189443288,-500.0,0.00011506,2]
[352600030,1739189443300,-500.0,0.00011506,2]
[352600031,1739189443310,-500.0,0.00011506,2]
[352600032,1739189443320,-500.0,0.00011506,2]
[352600033,1739189443330,-15991.72,0.00011506,2]
[352600034,1739189443341,-712.52,0.00011506,2]
[352600035,1739189443352,-500.0,0.00011506,2]
[352600036,1739189443452,-500.0,0.00011506,2]
[352600037,1739189443462,-1064.4,0.00011506,2]
[352600038,1739189443472,-500.0,0.00011506,2]
[352600039,1739189443482,-781.93,0.00011506,2]
[352600040,1739189443491,-500.0,0.00011506,2]
[352600041,1739189443501,-655.56,0.00011506,2]
[352600042,1739189443512,-500.0,0.00011506,2]
[352600043,1739189443522,-1531.85,0.00011506,2]
[352600044,1739189443536,-500.0,0.00011506,2]
[352600045,1739189443545,-806.14,0.00011506,2]
[352600046,1739189443555,-1191.34,0.00011506,2]
[352600047,1739189443565,-500.0,0.00011506,2]
[352600048,1739189443576,-3275.8,0.00011506,2]
[352600049,1739189443586,-500.0,0.00011506,2]
[352600050,1739189443596,-500.0,0.00011506,2]
[352600051,1739189443607,-724.35,0.00011506,2]
[352600052,1739189443617,-500.0,0.00011506,2]
[352600053,1739189443627,-802.4,0.00011506,2]
[352600054,1739189443637,-7417.1,0.00011506,2]
[352600055,1739189443647,-1489.04,0.00011506,2]
[352600056,1739189443657,-791.55,0.00011506,2]
[352600057,1739189443667,-813.92,0.00011506,2]
[352600058,1739189443677,-787.61,0.00011506,2]
[352600059,1739189443687,-597.3,0.00011506,2]
[352600060,1739189443697,-606.85,0.00011506,2]
[352600061,1739189443706,-500.0,0.00011506,2]
[352600062,1739189443716,-500.0,0.00011529,2]
[352600063,1739189443726,-1629.22344926,0.00011583,2]
[352600064,1739189443736,-500.0,0.00011642,2]
[352600065,1739189443746,-500.0,0.00011642,2]
[352600066,1739189443756,-446.60456234,0.00011642,2]
[352600067,1739189443766,-500.0,0.00011643,2]
[352600068,1739189443776,-500.0,0.00011643,2]
[352600069,1739189443786,-500.0,0.00011643,2]
[352600070,1739189443796,-500.0,0.00011643,2]
[352600071,1739189443806,-500.0,0.00011643,2]
[352600072,1739189443817,-500.0,0.00011643,2]
[352600073,1739189443827,-810.36,0.00011643,2]
[352600074,1739189443838,-512.43,0.00011643,2]
[352600075,1739189443849,-500.0,0.00011643,2]
[352600076,1739189443859,-500.0,0.00011643,2]
[352600077,1739189443869,-500.0,0.00011643,2]
[352600078,1739189443880,-562.57,0.00011643,2]
[352600079,1739189443890,-500.0,0.00011643,2]
[352600080,1739189443901,-500.0,0.00011643,2]
[352600081,1739189443911,-500.0,0.00011643,2]
[352600082,1739189443921,-567.75,0.00011643,2]
[352600083,1739189443931,-500.0,0.00011643,2]
[352600084,1739189443940,-500.0,0.00011643,2]
[352600085,1739189443951,-500.0,0.00011643,2]
[352600086,1739189443961,-500.0,0.00011643,2]
[352600087,1739189443970,-500.0,0.00011643,2]
[352600088,1739189443979,-500.0,0.00011643,2]
[352600089,1739189443989,-500.0,0.00011643,2]
[352600090,1739189443999,-500.0,0.00011643,2]
[352600091,1739189444008,-763.0,0.00011643,2]
[352600092,1739189444017,-500.0,0.00011643,2]
[352600093,1739189444028,-500.0,0.00011643,2]
[352600094,1739189444038,-500.0,0.00011643,2]
[352600095,1739189444047,-536.46,0.00011643,2]
[352600096,1739189444057,-500.0,0.00011643,2]
[352600097,1739189444066,-500.0,0.00011643,2]
[352600098,1739189444076,-500.0,0.00011643,2]
[352600099,1739189444085,-500.0,0.00011643,2]
[352600100,1739189444094,-1594.08,0.00011643,2]
[352600101,1739189444104,-531.01,0.00011643,2]
[352600102,1739189444113,-500.0,0.00011643,2]
[352600103,1739189444122,-500.0,0.00011643,2]
[352600104,1739189444131,-1871.76,0.00011643,2]
[352600105,1739189444141,-2807.91,0.00011643,2]
[352600106,1739189444151,-1308.92,0.00011643,2]
[352600107,1739189444160,-738.83,0.00011643,2]
[352600108,1739189444170,-500.0,0.00011643,2]
[352600109,1739189444180,-500.0,0.00011643,2]
[352600110,1739189444189,-1414.35,0.00011643,2]
[352600111,1739189444199,-500.0,0.00011643,2]
[352600112,1739189444208,-526.69,0.00011643,2]
[352600113,1739189444217,-6325.24,0.00011643,2]
[352600114,1739189444227,-500.0,0.00011643,2]
[352600115,1739189444237,-500.0,0.00011643,2]
[352600116,1739189444246,-500.0,0.00011643,2]
[352600117,1739189444256,-500.0,0.00011643,2]
[352600118,1739189444267,-15991.72,0.00011643,2]
[352600119,1739189444276,-712.52,0.00011643,2]
[352600120,1739189444288,-500.0,0.00011643,2]
[352600121,1739189444298,-500.0,0.00011643,2]
[352600122,1739189444309,-1064.4,0.00011643,2]
[352600123,1739189444319,-500.0,0.00011643,2]
[352600124,1739189444329,-781.93,0.00011643,2]
[352600125,1739189444340,-500.0,0.00011643,2]
[352600126,1739189444350,-655.56,0.00011643,2]
[352600127,1739189444360,-500.0,0.00011643,2]
[352600128,1739189444369,-1531.85,0.00011643,2]
[352600129,1739189444379,-500.0,0.00011643,2]
[352600130,1739189444389,-806.14,0.00011643,2]
[352600131,1739189444399,-1191.34,0.00011643,2]
[352600132,1739189444409,-500.0,0.00011643,2]
[352600133,1739189444419,-3275.8,0.00011643,2]
[352600134,1739189444428,-500.0,0.00011643,2]
[352600135,1739189444439,-500.0,0.00011643,2]
[352600136,1739189444449,-724.35,0.00011643,2]
[352600137,1739189444459,-219.49418036,0.00011643,2]
[352600138,1739189444469,-802.4,0.00011643,2]
[352600139,1739189444479,-7417.1,0.00011643,2]
[352600140,1739189444490,-1489.04,0.00011643,2]
[352600141,1739189444499,-791.55,0.00011643,2]
[352600142,1739189444509,-813.92,0.00011643,2]
[352600143,1739189444519,-787.61,0.00011643,2]
[352600144,1739189444532,-606.85,0.00011643,2]
[352600145,1739189444542,-500.0,0.00011643,2]
[352600146,1739189444552,-500.0,0.0001178,2]
[352600147,1739189444562,-447.68526122,0.0001178,2]
[352600148,1739189444571,-500.0,0.0001178,2]
[352600149,1739189444582,-500.0,0.0001178,2]
[352600150,1739189444592,-500.0,0.0001178,2]
[352600151,1739189444602,-810.36,0.0001178,2]
[352600152,1739189444613,-512.43,0.0001178,2]
[352600153,1739189444623,-500.0,0.0001178,2]
[352600154,1739189444633,-500.0,0.0001178,2]
[352600155,1739189444642,-532.98444533,0.0001178,2]
[352600156,1739189444652,-562.57,0.0001178,2]
[352600157,1739189444662,-500.0,0.0001178,2]
[352600158,1739189444671,-500.0,0.0001178,2]
[352600159,1739189444682,-500.0,0.0001178,2]
[352600160,1739189444691,-567.75,0.0001178,2]
[352600161,1739189444700,-500.0,0.0001178,2]
[352600162,1739189444709,-500.0,0.0001178,2]
[352600163,1739189444719,-500.0,0.0001178,2]
[352600164,1739189444729,-500.0,0.0001178,2]
[352600165,1739189444739,-500.0,0.0001178,2]
[352600166,1739189444748,-500.0,0.0001178,2]
[352600167,1739189444759,-500.0,0.0001178,2]
[352600168,1739189444768,-624.31537494,0.0001178,2]
[352600169,1739189444778,-763.0,0.0001178,2]
[352600170,1739189444789,-500.0,0.0001178,2]
[352600171,1739189444799,-500.0,0.0001178,2]
[352600172,1739189444808,-500.0,0.0001178,2]
[352600173,1739189444818,-536.46,0.0001178,2]
[352600174,1739189444827,-500.0,0.0001178,2]
[352600175,1739189444837,-500.0,0.0001178,2]
[352600176,1739189444847,-500.0,0.0001178,2]
[352600177,1739189444857,-500.0,0.0001178,2]
[352600178,1739189444867,-1594.08,0.0001178,2]
[352600179,1739189444877,-531.01,0.0001178,2]
[352600180,1739189444887,-500.0,0.0001178,2]
[352600181,1739189444896,-500.0,0.0001178,2]
[352600182,1739189444906,-1871.76,0.0001178,2]
[352600183,1739189444915,-2807.91,0.0001178,2]
[352600184,1739189444925,-1308.92,0.0001178,2]
[352600185,1739189444935,-738.83,0.0001178,2]
[352600186,1739189444945,-500.0,0.0001178,2]
[352600187,1739189444954,-500.0,0.0001178,2]
[352600188,1739189444964,-1414.35,0.0001178,2]
[352600189,1739189444974,-500.0,0.0001178,2]
[352600190,1739189444984,-526.69,0.0001178,2]
[352600191,1739189444994,-6325.24,0.0001178,2]
[352600192,1739189445003,-500.0,0.0001178,2]
[352600193,1739189445013,-500.0,0.0001178,2]
[352600194,1739189445024,-500.0,0.0001178,2]
[352600195,1739189445034,-500.0,0.0001178,2]
[352600196,1739189445044,-15991.72,0.0001178,2]
[352600197,1739189445053,-712.52,0.0001178,2]
[352600198,1739189445063,-500.0,0.0001178,2]
[352600199,1739189445072,-500.0,0.0001178,2]
[352600200,1739189445081,-1064.4,0.0001178,2]
[352600201,1739189445091,-500.0,0.0001178,2]
[352600202,1739189445100,-781.93,0.0001178,2]
[352600203,1739189445110,-500.0,0.0001178,2]
[352600204,1739189445119,-655.56,0.0001178,2]
[352600205,1739189445128,-500.0,0.0001178,2]
[352600206,1739189445138,-1531.85,0.0001178,2]
[352600207,1739189445148,-254.66862441,0.0001178,2]
[352600208,1739189445158,-806.14,0.0001178,2]
[352600209,1739189445168,-1191.34,0.0001178,2]
[352600210,1739189445178,-258.34,0.0001178,2]
[352600211,1739189445188,-3275.8,0.0001178,2]
[352600212,1739189445199,-500.0,0.0001178,2]
[352600213,1739189445209,-500.0,0.0001178,2]
[352600214,1739189445219,-724.35,0.0001178,2]
[352600215,1739189445230,-802.4,0.0001178,2]
[352600216,1739189445240,-7417.1,0.0001178,2]
[352600217,1739189445250,-1489.04,0.0001178,2]
[352600218,1739189445260,-791.55,0.0001178,2]
[352600219,1739189445270,-813.92,0.0001178,2]
[352600220,1739189445279,-787.61,0.0001178,2]
[352600221,1739189445289,-606.85,0.0001178,2]
[352600222,1739189445299,-500.0,0.0001178,2]
[352600223,1739189445310,-776.52252038,0.00011788,2]
[352600224,1739189445320,-277.11118127,0.00011817,2]
[352600225,1739189445329,-500.0,0.00011917,2]
[352600226,1739189445339,-500.0,0.00011917,2]
[352600227,1739189445349,-500.0,0.00011917,2]
[352600228,1739189445359,-810.36,0.00011917,2]
[352600229,1739189445368,-512.43,0.00011917,2]
[352600230,1739189445377,-500.0,0.00011917,2]
[352600231,1739189445386,-500.0,0.00011917,2]
[352600232,1739189445395,-562.57,0.00011917,2]
[352600233,1739189445405,-500.0,0.00011917,2]
[352600234,1739189445414,-500.0,0.00011917,2]
[352600235,1739189445423,-500.0,0.00011917,2]
[352600236,1739189445433,-567.75,0.00011917,2]
[352600237,1739189445442,-500.0,0.00011917,2]
[352600238,1739189445451,-500.0,0.00011917,2]
[352600239,1739189445460,-500.0,0.00011917,2]
[352600240,1739189445469,-500.0,0.00011917,2]
[352600241,1739189445478,-500.0,0.00011917,2]
[352600242,1739189445487,-500.0,0.00011917,2]
[352600243,1739189445496,-500.0,0.00011917,2]
[352600244,1739189445505,-763.0,0.00011917,2]
[352600245,1739189445597,-646.69536164,0.00011917,2]
[352600246,1739189445609,-500.0,0.00011917,2]
[352600247,1739189445619,-500.0,0.00011917,2]
[352600248,1739189445629,-536.46,0.00011917,2]
[352600249,1739189445638,-500.0,0.00011917,2]
[352600250,1739189445647,-500.0,0.00011917,2]
[352600251,1739189445656,-500.0,0.00011917,2]
[352600253,1739189445666,-624.47,0.00011917,2]
[352600254,1739189445675,-1594.08,0.00011917,2]
[352600255,1739189445685,-531.01,0.00011917,2]
[352600256,1739189445694,-500.0,0.00011917,2]
[352600257,1739189445703,-500.0,0.00011917,2]
[352600258,1739189445712,-1871.76,0.00011917,2]
[352600260,1739189445721,-2807.91,0.00011917,2]
[352600262,1739189445731,-1308.92,0.00011917,2]
[352600264,1739189445740,-738.83,0.00011917,2]
[352600265,1739189445749,-500.0,0.00011917,2]
[352600267,1739189445758,-500.0,0.00011917,2]
[352600268,1739189445768,-1414.35,0.00011917,2]
[352600269,1739189445777,-500.0,0.00011917,2]
[352600270,1739189445788,-526.69,0.00011917,2]
[352600271,1739189445797,-6325.24,0.00011917,2]
[352600272,1739189445806,-500.0,0.00011917,2]
[352600273,1739189445816,-500.0,0.00011917,2]
[352600274,1739189445825,-500.0,0.00011917,2]
[352600275,1739189445835,-500.0,0.00011917,2]
[352600276,1739189445844,-712.52,0.00011917,2]
[352600277,1739189445854,-15991.72,0.00011917,2]
[352600279,1739189445863,-500.0,0.00011917,2]
[352600280,1739189445872,-500.0,0.00011917,2]
[352600281,1739189445881,-1064.4,0.00011917,2]
[352600282,1739189445891,-500.0,0.00011917,2]
[352600283,1739189445900,-781.93,0.00011917,2]
[352600284,1739189445909,-500.0,0.00011917,2]
[352600286,1739189445919,-655.56,0.00011917,2]
[352600287,1739189445928,-500.0,0.00011917,2]
[352600290,1739189445939,-1531.85,0.00011917,2]
[352600291,1739189445948,-806.14,0.00011917,2]
[352600292,1739189445958,-1191.34,0.00011917,2]
[352600293,1739189445968,-3275.8,0.00011917,2]
[352600295,1739189445977,-500.0,0.00011917,2]
[352600297,1739189445986,-500.0,0.00011917,2]
[352600298,1739189445996,-724.35,0.00011917,2]
[352600299,1739189446006,-802.4,0.00011917,2]
[352600300,1739189446015,-7417.1,0.00011917,2]
[352600301,1739189446025,-1489.04,0.00011917,2]
[352600302,1739189446036,-791.55,0.00011917,2]
[352600303,1739189446045,-813.92,0.00011917,2]
[352600304,1739189446054,-787.61,0.00011917,2]
[352600305,1739189446063,-606.85,0.00011917,2]
[352600306,1739189446072,-500.0,0.00011917,2]
[352600307,1739189446082,-754.54361227,0.0001192,2]
[352600308,1739189446091,-1000.0,0.00011958,2]
[352600309,1739189446101,-500.0,0.00012015,2]
[352600310,1739189446111,-735.21736496,0.00012017,2]
[352600311,1739189446120,-502.27251224,0.00012027,2]
[352600312,1739189446129,-1000.59239481,0.00012027,2]
[352600314,1739189446142,-1000.0,0.00012027,2]
[352600315,1739189446151,-420.0,0.0001204,2]
[352600316,1739189446162,-531.26523494,0.00012043,2]
[352600317,1739189446171,-516.71114806,0.00012043,2]
[352600318,1739189446181,-500.0,0.00012054,2]
[352600319,1739189446191,-384.97481335,0.00012054,2]
[352600320,1739189446200,-500.0,0.00012054,2]
[352600321,1739189446209,-810.36,0.00012054,2]
[352600322,1739189446219,-512.43,0.00012054,2]
[352600323,1739189446228,-500.0,0.00012054,2]
[352600324,1739189446238,-500.0,0.00012054,2]
[352600325,1739189446248,-562.57,0.00012054,2]
[352600326,1739189446258,-620.75555883,0.00012054,2]
[352600327,1739189446267,-500.0,0.00012054,2]
[352600328,1739189446277,-500.0,0.00012054,2]
[352600329,1739189446287,-567.75,0.00012054,2]
[352600330,1739189446297,-500.0,0.00012054,2]
[352600331,1739189446306,-500.0,0.00012054,2]
[352600332,1739189446315,-500.0,0.00012054,2]
[352600333,1739189446325,-500.0,0.00012054,2]
[352600334,1739189446335,-500.0,0.00012054,2]
[352600335,1739189446344,-500.0,0.00012054,2]
[352600336,1739189446354,-500.0,0.00012054,2]
[352600337,1739189446363,-763.0,0.00012054,2]
[352600338,1739189446373,-500.0,0.00012054,2]
[352600339,1739189446382,-500.0,0.00012054,2]
[352600340,1739189446392,-536.46,0.00012054,2]
[352600341,1739189446401,-500.0,0.00012054,2]
[352600342,1739189446411,-500.0,0.00012054,2]
[352600343,1739189446420,-367.74081723,0.00012054,2]
[352600344,1739189446430,-1594.08,0.00012054,2]
[352600345,1739189446439,-531.01,0.00012054,2]
[352600346,1739189446449,-500.0,0.00012054,2]
[352600347,1739189446458,-500.0,0.00012054,2]
[352600348,1739189446469,-778.54682127,0.00012054,2]
[352600349,1739189446586,-1093.21317873,0.00012054,2]
[352600350,1739189446595,-2807.91,0.00012054,2]
[352600351,1739189446605,-1308.92,0.00012054,2]
[352600352,1739189446617,-738.83,0.00012054,2]
[352600353,1739189446626,-500.0,0.00012054,2]
[352600354,1739189446635,-500.0,0.00012054,2]
[352600355,1739189446646,-1414.35,0.00012054,2]
[352600356,1739189446656,-500.0,0.00012054,2]
[352600357,1739189446665,-526.69,0.00012054,2]
[352600358,1739189446675,-6325.24,0.00012054,2]
[352600359,1739189446684,-500.0,0.00012054,2]
[352600360,1739189446694,-233.81066298,0.00012054,2]
[352600361,1739189446704,-500.0,0.00012054,2]
[352600362,1739189446714,-500.0,0.00012054,2]
[352600363,1739189446723,-712.52,0.00012054,2]
[352600364,1739189446733,-15991.72,0.00012054,2]
[352600365,1739189446742,-500.0,0.00012054,2]
[352600366,1739189446751,-500.0,0.00012054,2]
[352600367,1739189446761,-1064.4,0.00012054,2]
[352600368,1739189446770,-781.93,0.00012054,2]
[352600369,1739189446781,-500.0,0.00012054,2]
[352600370,1739189446791,-500.0,0.00012054,2]
[352600371,1739189446800,-655.56,0.00012054,2]
[352600372,1739189446809,-500.0,0.00012054,2]
[352600373,1739189446819,-1531.85,0.00012054,2]
[352600374,1739189446829,-806.14,0.00012054,2]
[352600375,1739189446839,-1191.34,0.00012054,2]
[352600376,1739189446848,-3275.8,0.00012054,2]
[352600377,1739189446857,-500.0,0.00012054,2]
[352600378,1739189446867,-500.0,0.00012054,2]
[352600379,1739189446877,-724.35,0.00012054,2]
[352600380,1739189446887,-802.4,0.00012054,2]
[352600381,1739189446897,-7417.1,0.00012054,2]
[352600382,1739189446907,-1489.04,0.00012054,2]
[352600383,1739189446916,-791.55,0.00012054,2]
[352600384,1739189446926,-813.92,0.00012054,2]
[352600385,1739189446935,-787.61,0.00012054,2]
[352600386,1739189446945,-606.85,0.00012054,2]
[352600387,1739189446954,-500.0,0.00012054,2]
[352600388,1739189446963,-157.15567255,0.00012191,2]
[352600389,1739189446973,-500.0,0.00012191,2]
[352600390,1739189446983,-810.36,0.00012191,2]
[352600391,1739189446993,-512.43,0.00012191,2]
[352600392,1739189447002,-500.0,0.00012191,2]
[352600393,1739189447013,-500.0,0.00012191,2]
[352600394,1739189447023,-562.57,0.00012191,2]
[352600395,1739189447034,-500.0,0.00012191,2]
[352600396,1739189447044,-500.0,0.00012191,2]
[352600397,1739189447054,-567.75,0.00012191,2]
[352600398,1739189447064,-500.0,0.00012191,2]
[352600399,1739189447074,-500.0,0.00012191,2]
[352600400,1739189447084,-500.0,0.00012191,2]
[352600401,1739189447093,-500.0,0.00012191,2]
[352600402,1739189447103,-500.0,0.00012191,2]
[352600403,1739189447113,-500.0,0.00012191,2]
[352600404,1739189447124,-500.0,0.00012191,2]
[352600405,1739189447134,-763.0,0.00012191,2]
[352600406,1739189447144,-500.0,0.00012191,2]
[352600407,1739189447154,-500.0,0.00012191,2]
[352600408,1739189447163,-536.46,0.00012191,2]
[352600409,1739189447173,-500.0,0.00012191,2]
[352600410,1739189447183,-218.6098342,0.00012191,2]
[352600411,1739189447193,-1594.08,0.00012191,2]
[352600412,1739189447203,-531.01,0.00012191,2]
[352600413,1739189447212,-374.91282092,0.00012191,2]
[352600414,1739189447222,-500.0,0.00012191,2]
[352600415,1739189447231,-1871.76,0.00012191,2]
[352600416,1739189447241,-2807.91,0.00012191,2]
[352600417,1739189447251,-1308.92,0.00012191,2]
[352600418,1739189447260,-738.83,0.00012191,2]
[352600419,1739189447270,-500.0,0.00012191,2]
[352600420,1739189447279,-290.86,0.00012191,2]